Cogmind - Beta 12 X4 @@@ ROGUE MODE // 2023.01.14 @ 20:46:46 Player: albenzo Result: Destroyed by D-53 Grenadier with Mini Grenade Launcher Performance ------------- Evolutions (0) 0 Regions Visited (2) 400 Robots Destroyed (4) 20 Value Destroyed (167) 167 Prototype IDs (0) 0 Alien Tech Used (0) 0 Bonus (-6) -6 TOTAL SCORE: 581 Bonus ------- Friendly Fire -6 Cogmind --------- Core Integrity 0/250 Matter 215/300 Energy 100/100 System Corruption 0% Temperature Cool (0) Movement Core (50) Location -10/Mines Parts ------- > --- POWER (1) -------- (None) > --- PROPULSION (2) --- (None) > --- UTILITY (2) ------ (None) > --- WEAPON (2) ------- (None) > --- INVENTORY (5) ---- Light Treads Wheel Grenade Launcher Rocket Launcher Rocket Launcher Peak State ------------ > --- POWER ------------ (None) > --- PROPULSION ------- Aluminum Leg Flexi-carbon Leg > --- UTILITY ---------- Improved Heat Sink Structural Scanner > --- WEAPON ----------- Rocket Launcher Rocket Launcher > --- INVENTORY -------- Light Treads Wheel Grenade Launcher Rocket Launcher Rocket Launcher [Rating: 14] Favorites ----------- Power None Propulsion Aluminum Leg Treads Light Treads Leg Aluminum Leg Utility Structural Scanner Device Structural Scanner Weapon Rocket Launcher Launcher Rocket Launcher Build | -11 -10 -10 ------- Run | Scr Mat Min Slots Evolved . | . . . Power . | . . . Propulsion . | . . . Utility . | . . . Weapon . | . . . Parts Attached 9 | 1 7 1 Power . | . . . Engine . | . . . Core . | . . . Reactor . | . . . Propulsion 4 | 1 2 1 Treads 1 | 1 . . Leg 3 | . 2 1 Wheel . | . . . Hover . | . . . Flight . | . . . Utility 2 | . 2 . Device 2 | . 2 . Storage . | . . . Processor . | . . . Hackware . | . . . Protection . | . . . Artifact . | . . . Weapon 3 | . 3 . Energy Gun . | . . . Energy Cannon . | . . . Ballistic Gun . | . . . Ballistic Cannon . | . . . Launcher 3 | . 3 . Special Weapon . | . . . Impact Weapon . | . . . Slashing Weapon . | . . . Piercing Weapon . | . . . Special Melee Weapon . | . . . Unidentified Prototypes . | . . . Parts Lost 6 | . . 6 Power . | . . . Propulsion 2 | . . 2 Utility 2 | . . 2 Weapon 2 | . . 2 Highest Loss Streak 6 | . . 6 To Critical Strikes 2 | . . 2 Average Slot Usage (%) 55 | . 49 69 Treads 4 | . 5 . Leg 18 | . 16 24 Device 12 | . 8 21 Launcher 19 | . 17 22 Naked Turns 5 | . . 5 Heaviest Build 10 | . 10 10 Greatest Support 20 | 20 20 20 Greatest Overweight (x) . | . . . Average Overweight (x) . | . . . Largest Inventory Capacity 5 | 5 5 5 Average Capacity 5 | 5 5 5 Most Carried 5 | 1 5 5 Average Carried 2 | . 2 5 Final Capacity 5 | 5 5 5 Final Carried 5 | 1 5 5 Class Distribution -------------------- 100% | Mutant Dominant Class ---------------- Mutant | -10/Materials Mutant | -10/Mines Resources | -11 -10 -10 ----------- Run | Scr Mat Min Matter Collected 329 | 33 162 134 Remotely . | . . . Salvage Created 100 | . 45 55 Parts 7 | . 5 2 Haulers Intercepted . | . . . Recyclers Shooed . | . . . Parts Field Recycled . | . . . Retrieved Matter . | . . . Parts Self-Destructed . | . . . Prevented . | . . . Kills | -11 -10 -10 ------- Run | Scr Mat Min Combat Hostiles Destroyed 2 | . 1 1 AOE 2 | . 1 1 Classes Destroyed 3 | . 2 1 Builder 2 | . 1 1 Grunt 1 | . 1 . Demolisher 1 | . . 1 Best Kill Streak 2 | . 2 2 Combat Bots Only 1 | . 1 1 Max Kills in Single Turn 1 | . 1 1 Gunslinging . | . . . Exploded 1 | . 1 1 Melee . | . . . Uniques/NPCs Destroyed . | . . . Combat | -11 -10 -10 -------- Run | Scr Mat Min Damage Taken 708 | . 35 673 Core 275 | . 12 263 Absorbed by Shields . | . . . Core Remaining (%) 100 | 100 . . Volleys Fired 12 | . 5 7 Largest 2 | . 1 2 Hottest 66 | . 30 66 Shots Fired 16 | . 5 11 Gun . | . . . Cannon . | . . . Launcher 16 | . 5 11 Special . | . . . Kinetic . | . . . Thermal . | . . . Explosive 16 | . 5 11 Electromagnetic . | . . . Robot Hit Streak 2 | . 1 2 Robot Miss Streak 2 | . 2 1 Penetration Max . | . . . Secondary Targets . | . . . Shots Hit Robots 7 | . 1 6 Core Hits 27 | . 4 23 Critical Kills . | . . . Critical Parts Destroyed . | . . . Critical Strikes . | . . . Melee Attacks . | . . . Impact . | . . . Slashing . | . . . Piercing . | . . . Sneak Attacks . | . . . Combat Hostiles . | . . . Follow-up Attacks . | . . . Damage Inflicted 746 | . 84 662 Guns . | . . . Cannons . | . . . Explosions 732 | . 84 648 Melee . | . . . Ramming 14 | . . 14 Kinetic . | . . . Thermal . | . . . Explosive 732 | . 84 648 Electromagnetic . | . . . Impact . | . . . Slashing . | . . . Piercing . | . . . Highest Corruption . | . . . Average Corruption . | . . . Corruption Purged . | . . . Corruption Blocked . | . . . Overload Shots . | . . . Overflow Damage 31 | . . 31 Projectiles . | . . . Explosions 31 | . . 31 Melee . | . . . Knockbacks . | . . . Impact . | . . . Kinetic . | . . . Secondary . | . . . Self-Inflicted Damage 38 | . 12 26 Shots 2 | . 1 1 Rammed 4 | . . 4 Targets Rammed 4 | . . 4 Kicked . | . . . Crushed . | . . . Highest Temperature . | . . . Average Temperature . | . . . Received Heat Transfer 12 | . 12 . Siege Activations . | . . . Robots Corrupted . | . . . Combat Hostiles . | . . . Parts Fried . | . . . Impact Corruptions . | . . . Robots Melted . | . . . Combat Hostiles . | . . . Parts Melted . | . . . Heat Transferred . | . . . Parts Sabotaged . | . . . Parts Stolen . | . . . Parts Stripped . | . . . Power Chain Reactions . | . . . Missiles Intercepted . | . . . Alert | -11 -10 -10 ------- Run | Scr Mat Min Peak Influence 200 | . 196 200 Initial 76 | . . 76 Average 101 | . 109 128 Maximum Alert Level 1 | . . 1 Low Security (%) 99 | 100 100 97 Level 1 . | . . 2 Level 2 . | . . . Level 3 . | . . . Level 4 . | . . . Level 5 . | . . . High Security . | . . . Max Security . | . . . Squads Dispatched 2 | . 2 . Investigation 1 | . 1 . Extermination . | . . . Reinforcement 1 | . 1 . Assault . | . . . Garrison . | . . . Intercept . | . . . Searches Triggered . | . . . Construction Impeded . | . . . Haulers Reinforced . | . . . Active Scanning Responses . | . . . Cargo Convoy Interrupts . | . . . Stealth | -11 -10 -10 --------- Run | Scr Mat Min Distress Signals . | . . . Communications Jammed . | . . . Distress Signals . | . . . Times Spotted 11 | . 4 7 Peak Tracking Total 3 | . 2 3 Tactical Retreats . | . . . Traps | -11 -10 -10 ------- Run | Scr Mat Min Traps Triggered . | . . . Indirectly . | . . . Trap Hack Attempts . | . . . Triggered . | . . . Disarmed . | . . . Reprogrammed . | . . . Reused . | . . . Traps Extracted . | . . . Installed . | . . . Triggered . | . . . Machines | -11 -10 -10 ---------- Run | Scr Mat Min Machines Disabled 1 | . 1 . Max in Single Turn 1 | . 1 . Machines Sabotaged 1 | . 1 . Overloaded Fab Kills . | . . . Hacking | -11 -10 -10 --------- Run | Scr Mat Min Machines Accessed 1 | . 1 . Terminals 1 | . 1 . Fabricators . | . . . Repair Stations . | . . . Recycling Units . | . . . Scanalyzers . | . . . Garrison Access . | . . . Total Hacks 1 | . 1 . Successful 1 | . 1 . Failed . | . . . Catastrophic . | . . . Database Lockouts . | . . . Manual 1 | . 1 . Terminals 1 | . 1 . Fabricators . | . . . Repair Stations . | . . . Recycling Units . | . . . Scanalyzers . | . . . Garrison Access . | . . . Terminal Hacks . | . . . Fabricator Hacks . | . . . Repair Station Hacks . | . . . Recycling Unit Hacks . | . . . Scanalyzer . | . . . Garrison Access Hacks . | . . . Unauthorized Hacks 1 | . 1 . Terminals 1 | . 1 . Sabotage 1 | . 1 . Fabricators . | . . . Repair Stations . | . . . Recycling Units . | . . . Scanalyzers . | . . . Garrison Access . | . . . Data Cores Recovered . | . . . Used . | . . . Hacking Detections . | . . . Full Trace Events . | . . . Feedback Events . | . . . Feedback Blocked . | . . . Robot Schematics Acquired . | . . . Robots Built . | . . . Authchips . | . . . Time . | . . . Total Robot Build Rating . | . . . Part Schematics Acquired . | . . . Parts Built . | . . . Authchips . | . . . Time . | . . . Total Part Build Rating . | . . . Parts Repaired . | . . . Time . | . . . Parts Recycled . | . . . Recycled Matter . | . . . Retrieved Matter . | . . . Retrieved Components . | . . . Parts Scanalyzed . | . . . Part Schematics Acquired . | . . . Parts Damaged . | . . . Bothacking | -11 -10 -10 ------------ Run | Scr Mat Min Used RIF Installer . | . . . Robots Hacked . | . . . Non-combat . | . . . Combat . | . . . Robot Hacks Applied . | . . . Relay Couplers Released . | . . . Fabnet Peak Effective % . | . . . Robots Rewired . | . . . Allies Hacked . | . . . Hacks Repelled . | . . . Allies | -11 -10 -10 -------- Run | Scr Mat Min Total Allies . | . . . Largest Group . | . . . Highest-Rated Group . | . . . Highest-Rated Ally . | . . . Total Orders . | . . . Ally Attacks . | . . . Total Damage . | . . . Kills . | . . . Allies Corrupted . | . . . Allies Melted . | . . . Intel | -11 -10 -10 ------- Run | Scr Mat Min Robot Analysis Total . | . . . Derelict Logs Recovered . | . . . Drone Launches . | . . . Drone Recoveries . | . . . Exploration | -11 -10 -10 ------------- Run | Scr Mat Min Turns Passed 299 | 34 187 78 Spaces Moved 184 | 22 122 40 Core 4 | 2 . 2 Treads 65 | 20 45 . Legs 115 | . 77 38 Wheels . | . . . Hover . | . . . Flight . | . . . Fastest Speed 50 | 50 120 50 Average Speed 132 | 150 134 116 Slowest Speed 160 | 160 160 120 Overloaded Moves . | . . . Propulsion Burnouts . | . . . Robots Hopped . | . . . Cave-ins Triggered . | . . . Exploration Rate (%) 19 | 3 40 14 Regions Visited 2 Branch Regions 1 Pre-discovered Areas . | . . . Known Exits Taken . | . . . Unknown Exits Taken 2 | 1 1 . Scrap Searched . | . . . Spaces Dug . | . . . Terrain Destroyed 89 | . 27 62 Melee . | . . . Projectile . | . . . AOE 89 | . 27 62 Terrain Rammed . | . . . Walls Destroyed . | . . . Machines Disabled . | . . . Actions | -11 -10 -10 --------- Run | Scr Mat Min Total 220 | 23 136 61 Wait 8 | . . 8 Move 182 | 21 121 40 Hop . | . . . Pick Up 3 | 1 2 . Fast Attach 7 | 1 6 . Attach . | . . . Detach 1 | . 1 . Swap 2 | . 1 1 Drop 1 | . . 1 Fire 12 | . 5 7 Melee . | . . . Ram 4 | . . 4 Kick . | . . . Crush . | . . . Escape Stasis . | . . . Rewire . | . . . Trap . | . . . Miscellaneous . | . . . Route ------- -11/Scrapyard -10/Materials -10/Mines History --------- Turn | Location | Event 10 | -11/Scrapyard | Discovered new exit (range 15) 35 | -11/Scrapyard | Entered Materials 157 | -10/Materials | Met 8R-AWN 211 | -10/Materials | Discovered new exit (range 8) 222 | -10/Materials | Entered Mines 224 | -10/Mines | Followed 8R-AWN into the Mines 234 | -10/Mines | Met a Derelict bent on vengeance 235 | -10/Mines | Assembled infested the area 240 | -10/Mines | Assisted by a Guerilla fighting off Assembled 285 | -10/Mines | Attacked by 8R-AWN 293 | -10/Mines | Core integrity fell below 50% 297 | -10/Mines | Core integrity fell below 20% 300 | -10/Mines | Destroyed by D-53 Grenadier with Mini Grenade Launcher Last Messages --------------- 00291_ HV Slug penetrates Wall. 00291_ Penetrated by HV Slug. 00291_ Aluminum Leg destroyed. 00291_ HV Slug penetrates Wall. 00292_ Rocket Launcher destroyed. 00292_ Destroyed Rocket Launcher. 00293_ Penetrated by HV Slug. 00293_ HV Slug penetrates Wall. 00293_ HV Slug penetrates Earth. 00293_ HV Slug penetrates Wall. 00295_ The unstable cave ceiling collapses. 00295_ HV Slug penetrates Earth. 00295_ HV Slug penetrates Wall. 00295_ Penetrated by HV Slug. 00295_ Critical hit (Destroy). 00295_ Flexi-carbon Leg destroyed. 00295_ HV Slug penetrates Wall. 00297_ Slammed into 8R-AWN. 00298_ HV Slug penetrates D-53 Grenadier. 00299_ Slammed into 8R-AWN. Map ----- +----------------------------------------------------+ | ????????????????############?????????????????????? | | ????????????????## ##?????????????????????? | | ????????????????## ##?????????????????????? | | ????????????????## ##?????????????????????? | | ????????????????## #####??????????????????? | | ????????????????## " " #####??????????????????? | | ????????????????## "" " ####????????????????? | | ????????????????########### #####???????????????? | | ????????????????########### ####??????????????? | | ????????????????????????### # #??????????????? | | ????????????????????????## ""#??????????????? | | ????????????????????????## #######?????????? | | ????????????????????????## #######?????????? | | ???????????????????????### ##?????????? | | ?????????????? #?????? ### ###### ##?????????? | | ????????????? ???? ### # ### ##?????????? | | ????????????# ? ## ###?????????????? | | ????????????# ### ] ###?????????????? | | ???????????? # ##?????????????? | | ??????????? # ## ?????????????? | | ??????????? # ??????????????? | | ?????????? t # ??????????????? | | ?????????? =% ##??????????????? | | ?????????? d ####??????????????? | | ????????????### g < ####??????????????? | | ?????????????## @ ##????????????????? | | ?????????????## ##?????????????????? | | ?????????????####### #??????????????????? | | ??????????????######## # ##??????????????????? | | ???????????????????### # ###???????????????????? | | ?????????????????????#### ##?????????????????????? | | ???????????????????????## #??????????????????????? | | ???????????????????????## #??????????????????????? | | ???????????????????????## #??????????????????????? | | ??????????????????????? ???????????????????????? | | ????????????????????????##???????????????????????? | | ?????????????????????????????????????????????????? | | ?????????????????????????????????????????????????? | | ?????????????????????????????????????????????????? | | ?????????????????????????????????????????????????? | | ?????????????????????????????????????????????????? | | ?????????????????????????????????????????????????? | | ?????????????????????????????????????????????????? | | ?????????????????????????????????????????????????? | | ?????????????????????????????????????????????????? | | ?????????????????????????????????????????????????? | | ?????????????????????????????????????????????????? | | ?????????????????????????????????????????????????? | | ?????????????????????????????????????????????????? | | ?????????????????????????????????????????????????? | +----------------------------------------------------+ Best States ------------- Heat Dissipation 39 Energy Generation 5 Energy Capacity 100 Matter Stores 252 Matter Capacity 300 Sight Range 16 Terrain Scan Density 10 Evasion (%) 55 Recoil Reduction 1 Item Schematics ----------------- None Robot Schematics ------------------ None Fabricated ------------ Nothing Alien Tech Used ----------------- None Achievements -------------- None Challenges ------------ None Game ------ Seed RegenerativeActuatorRailgun Manual? 0 Play Time 00:05:29 Cumulative 95.2 hours Start 2023.01.14 @ 20:42:31 End 2023.01.14 @ 20:46:46 Sessions 1 Manual Loads 0 Difficulty Rogue Special Mode None Game No. 81 Rogue 81 Adventurer 0 Explorer 0 Win Type - Total 5 Types 4/0/1/0/0/0/0/0/0 Lore% 64 Gallery% 63 Achievement% 55 Wizard Run 0 Options --------- ASCII 0 Keyboard 1 Movement Vi Keybinds 0 Fullscreen 2 Font 24/Proggy Map View 76x50 Tactical HUD 1 Map Filters NONE Filters NONE Steam 1 RUN: d8d232b9-2d8a-4ea7-8569-2e52612e2594